[Event "Early-Titled-Tuesday-Blitz-September-12-2023"]
[Site "Chess.com"]
[Date "2023.09.12"]
[Round "4"]
[White "MrTattaglia"]
[Black "enestnrvrd"]
[Result "0-1"]
[WhiteElo "2913"]
[BlackElo "2733"]
[TimeControl "180+1"]
[EndTime "8:39:23 PDT"]
[Termination "enestnrvrd won on time"]

1. d4 {[%clk 0:02:57.4]} 1... Nf6 {[%clk 0:02:59.8]} 2. c4 {[%clk 0:02:57.1]}
2... g6 {[%clk 0:03:00.2]} 3. Nc3 {[%clk 0:02:56.7]} 3... Bg7 {[%clk 0:03:00.8]}
4. g3 {[%clk 0:02:53.3]} 4... O-O {[%clk 0:03:00.1]} 5. Bg2 {[%clk 0:02:53.4]}
5... d6 {[%clk 0:03:00.7]} 6. Nf3 {[%clk 0:02:53.2]} 6... Nc6 {[%clk 0:03:00.1]}
7. b3 {[%clk 0:02:52.9]} 7... Bf5 {[%clk 0:02:55.4]} 8. Bb2 {[%clk 0:02:52.3]}
8... Ne4 {[%clk 0:02:55.5]} 9. Nxe4 {[%clk 0:02:52]} 9... Bxe4 {[%clk
0:02:55.6]} 10. O-O {[%clk 0:02:52.6]} 10... e6 {[%clk 0:02:44.1]} 11. Re1
{[%clk 0:02:45]} 11... d5 {[%clk 0:02:44]} 12. Rc1 {[%clk 0:02:43.2]} 12... a5
{[%clk 0:02:43.2]} 13. e3 {[%clk 0:02:41]} 13... Qe7 {[%clk 0:02:38.5]} 14. Bf1
{[%clk 0:02:37]} 14... g5 {[%clk 0:02:28.3]} 15. Nd2 {[%clk 0:02:33.9]} 15...
Bg6 {[%clk 0:02:27.8]} 16. Bg2 {[%clk 0:02:34.1]} 16... Nb4 {[%clk 0:02:22.2]}
17. Ba3 {[%clk 0:02:28.8]} 17... c6 {[%clk 0:02:22.2]} 18. Nb1 {[%clk
0:02:24.6]} 18... Rfd8 {[%clk 0:02:17.4]} 19. Nc3 {[%clk 0:02:24.1]} 19... Qf6
{[%clk 0:02:13.6]} 20. cxd5 {[%clk 0:02:23.3]} 20... exd5 {[%clk 0:02:11.2]} 21.
Re2 {[%clk 0:02:15.9]} 21... Bh5 {[%clk 0:02:06.8]} 22. Bb2 {[%clk 0:02:14.1]}
22... Bxe2 {[%clk 0:01:59.2]} 23. Qxe2 {[%clk 0:02:15]} 23... Re8 {[%clk
0:01:53.8]} 24. a3 {[%clk 0:02:12.5]} 24... Na6 {[%clk 0:01:54.1]} 25. Na4
{[%clk 0:02:12.4]} 25... Qg6 {[%clk 0:01:51.7]} 26. Qd2 {[%clk 0:02:07.7]} 26...
Nc7 {[%clk 0:01:47.5]} 27. Nb6 {[%clk 0:02:07.8]} 27... Ra6 {[%clk 0:01:43.5]}
28. Nd7 {[%clk 0:02:06.5]} 28... Ne6 {[%clk 0:01:39.5]} 29. Ne5 {[%clk 0:02:06]}
29... Bxe5 {[%clk 0:01:36.8]} 30. dxe5 {[%clk 0:02:05.6]} 30... Raa8 {[%clk
0:01:37]} 31. f4 {[%clk 0:02:05]} 31... d4 {[%clk 0:01:08.7]} 32. exd4 {[%clk
0:01:55.9]} 32... gxf4 {[%clk 0:01:08.4]} 33. gxf4 {[%clk 0:01:56.8]} 33... Kh8
{[%clk 0:01:07.9]} 34. Rf1 {[%clk 0:01:51.4]} 34... Qf5 {[%clk 0:01:06.6]} 35.
Kh1 {[%clk 0:00:36.8]} 35... Rg8 {[%clk 0:01:05.2]} 36. Qe2 {[%clk 0:00:30.9]}
36... Rxg2 {[%clk 0:00:57.9]} 37. Qxg2 {[%clk 0:00:28.5]} 37... Rg8 {[%clk
0:00:58.5]} 38. Qf3 {[%clk 0:00:25.4]} 38... Qc2 {[%clk 0:00:52]} 39. Ba1 {[%clk
0:00:22.7]} 39... Qf5 {[%clk 0:00:23.1]} 40. h3 {[%clk 0:00:20.4]} 40... h6
{[%clk 0:00:20.6]} 41. Bc3 {[%clk 0:00:15.3]} 41... Kh7 {[%clk 0:00:20.4]} 42.
Bxa5 {[%clk 0:00:02.2]} 42... Nxf4 {[%clk 0:00:19]} 43. d5 {[%clk 0:00:01.5]}
43... cxd5 {[%clk 0:00:16.6]} 44. Bd2 {[%clk 0:00:02]} 44... Qxh3+ {[%clk
0:00:05.8]} 45. Qxh3 {[%clk 0:00:02.3]} 45... Nxh3 {[%clk 0:00:06.7]} 46. Rxf7+
{[%clk 0:00:02.4]} 46... Rg7 {[%clk 0:00:07.6]} 47. Rf3 {[%clk 0:00:02.9]} 47...
Ng5 {[%clk 0:00:07.3]} 48. Rd3 {[%clk 0:00:02.9]} 48... Ne4 {[%clk 0:00:07.4]}
49. Rxd5 {[%clk 0:00:02.9]} 49... Nf2+ {[%clk 0:00:07.7]} 50. Kh2 {[%clk
0:00:03.2]} 50... Ng4+ {[%clk 0:00:08.6]} 51. Kh1 {[%clk 0:00:01.8]} 51... Nf2+
{[%clk 0:00:09.1]} 52. Kh2 {[%clk 0:00:02.5]} 52... Ne4 {[%clk 0:00:09.8]} 53.
Bf4 {[%clk 0:00:01.7]} 53... Rg4 {[%clk 0:00:10]} 54. Be3 {[%clk 0:00:01.4]}
54... Rg3 {[%clk 0:00:10.1]} 55. Bf4 {[%clk 0:00:01.3]} 55... Rxb3 {[%clk
0:00:10.6]} 56. Bc1 {[%clk 0:00:01.7]} 56... Rc3 {[%clk 0:00:10.7]} 57. e6
{[%clk 0:00:02.1]} 57... Rc2+ {[%clk 0:00:11.6]} 58. Kg1 {[%clk 0:00:01.4]}
58... Nf6 {[%clk 0:00:12.5]} 59. Bd2 {[%clk 0:00:01.2]} 59... Rb2 {[%clk
0:00:12.3]} 60. Rd6 {[%clk 0:00:01.5]} 60... Rb1+ {[%clk 0:00:13.2]} 61. Kg2
{[%clk 0:00:01.5]} 61... Kg6 {[%clk 0:00:14.1]} 62. e7 {[%clk 0:00:01.8]} 62...
Rb2 {[%clk 0:00:15]} 63. Rxf6+ {[%clk 0:00:01.7]} 63... Kxf6 {[%clk 0:00:15.2]}
64. e8=Q {[%clk 0:00:02.6]} 64... Rxd2+ {[%clk 0:00:15.6]} 65. Kf3 {[%clk
0:00:03.2]} 65... Rd5 {[%clk 0:00:16.5]} 66. Ke3 {[%clk 0:00:03.3]} 66... Re5+
{[%clk 0:00:17.4]} 67. Qxe5+ {[%clk 0:00:02.8]} 67... Kxe5 {[%clk 0:00:18.3]}
0-1

[Event "Early-Titled-Tuesday-Blitz-September-12-2023"]
[Site "Chess.com"]
[Date "2023.09.12"]
[Round "4"]
[White "Doomfist26"]
[Black "wild3000"]
[Result "0-1"]
[WhiteElo "2618"]
[BlackElo "2431"]
[TimeControl "180+1"]
[EndTime "8:39:25 PDT"]
[Termination "wild3000 won by checkmate"]

1. e4 {[%clk 0:03:00.9]} 1... a6 {[%clk 0:02:59.2]} 2. d4 {[%clk 0:03:00.7]}
2... e6 {[%clk 0:02:59.3]} 3. Nf3 {[%clk 0:02:59.8]} 3... b5 {[%clk 0:02:59.3]}
4. Bd3 {[%clk 0:02:59.5]} 4... Bb7 {[%clk 0:02:59.3]} 5. c4 {[%clk 0:02:57.5]}
5... bxc4 {[%clk 0:02:58.7]} 6. Bxc4 {[%clk 0:02:56.1]} 6... Bxe4 {[%clk
0:02:56.8]} 7. Nc3 {[%clk 0:02:56.8]} 7... Bxf3 {[%clk 0:02:43.8]} 8. Qxf3
{[%clk 0:02:56.5]} 8... d5 {[%clk 0:02:44.4]} 9. O-O {[%clk 0:02:56.2]} 9... Nf6
{[%clk 0:02:41.8]} 10. Re1 {[%clk 0:02:56]} 10... Be7 {[%clk 0:02:40.4]} 11. Bd3
{[%clk 0:02:51.2]} 11... O-O {[%clk 0:02:39]} 12. Bg5 {[%clk 0:02:48.8]} 12...
Nbd7 {[%clk 0:02:34.2]} 13. Rac1 {[%clk 0:02:46.4]} 13... c5 {[%clk 0:02:08.8]}
14. dxc5 {[%clk 0:02:43.3]} 14... Nxc5 {[%clk 0:02:07.5]} 15. Bb1 {[%clk
0:02:29.7]} 15... Ncd7 {[%clk 0:01:54.5]} 16. Rcd1 {[%clk 0:02:21.2]} 16... Re8
{[%clk 0:01:50.3]} 17. Qh3 {[%clk 0:02:12.3]} 17... h6 {[%clk 0:01:44.1]} 18.
Bh4 {[%clk 0:02:02.1]} 18... Rb8 {[%clk 0:01:33.4]} 19. b3 {[%clk 0:02:00.4]}
19... Nf8 {[%clk 0:01:31.6]} 20. Re3 {[%clk 0:01:52.3]} 20... Rb4 {[%clk
0:01:25.6]} 21. Bg3 {[%clk 0:01:13.9]} 21... Qc8 {[%clk 0:01:18.7]} 22. Rf3
{[%clk 0:00:58.5]} 22... a5 {[%clk 0:01:02.9]} 23. Ne2 {[%clk 0:00:55.9]} 23...
Ne4 {[%clk 0:00:58]} 24. Be5 {[%clk 0:00:53.8]} 24... Ng6 {[%clk 0:00:54.4]} 25.
Bb2 {[%clk 0:00:38.4]} 25... a4 {[%clk 0:00:54.3]} 26. a3 {[%clk 0:00:16.8]}
26... Rxb3 {[%clk 0:00:53.8]} 27. Rxb3 {[%clk 0:00:16.8]} 27... axb3 {[%clk
0:00:54.7]} 28. Qxb3 {[%clk 0:00:17.2]} 28... Qb8 {[%clk 0:00:52.9]} 29. Qa2
{[%clk 0:00:12.6]} 29... Bf6 {[%clk 0:00:46.4]} 30. Bxf6 {[%clk 0:00:11.4]}
30... Nxf6 {[%clk 0:00:43.4]} 31. Bxg6 {[%clk 0:00:11.6]} 31... fxg6 {[%clk
0:00:43.5]} 32. Qc2 {[%clk 0:00:11.8]} 32... Ne4 {[%clk 0:00:39.2]} 33. Nf4
{[%clk 0:00:10.8]} 33... Qxf4 {[%clk 0:00:35.4]} 34. f3 {[%clk 0:00:09.8]} 34...
Qe3+ {[%clk 0:00:34.9]} 35. Kf1 {[%clk 0:00:10.4]} 35... Nf6 {[%clk 0:00:25.9]}
36. Qxg6 {[%clk 0:00:10]} 36... Qxa3 {[%clk 0:00:25.5]} 37. Re1 {[%clk
0:00:09.9]} 37... Qa6+ {[%clk 0:00:20.4]} 38. Kg1 {[%clk 0:00:09.7]} 38... Qa7+
{[%clk 0:00:20.5]} 39. Kh1 {[%clk 0:00:10.1]} 39... Qf7 {[%clk 0:00:20.5]} 40.
Qd3 {[%clk 0:00:09.4]} 40... e5 {[%clk 0:00:20.5]} 41. Qb5 {[%clk 0:00:09.8]}
41... e4 {[%clk 0:00:20.5]} 42. fxe4 {[%clk 0:00:09.8]} 42... dxe4 {[%clk
0:00:20.8]} 43. h3 {[%clk 0:00:09.5]} 43... e3 {[%clk 0:00:20.5]} 44. Qd3 {[%clk
0:00:09.5]} 44... Qe6 {[%clk 0:00:20.4]} 45. Qg6 {[%clk 0:00:09.3]} 45... e2
{[%clk 0:00:19.5]} 46. Qd3 {[%clk 0:00:09.1]} 46... Qe5 {[%clk 0:00:18.9]} 47.
Qc4+ {[%clk 0:00:08.9]} 47... Kh7 {[%clk 0:00:18.1]} 48. Qd3+ {[%clk 0:00:08.9]}
48... g6 {[%clk 0:00:18.1]} 49. Qa6 {[%clk 0:00:07]} 49... Re7 {[%clk
0:00:17.7]} 50. Qd3 {[%clk 0:00:05.2]} 50... h5 {[%clk 0:00:17.5]} 51. Qd2
{[%clk 0:00:04.3]} 51... h4 {[%clk 0:00:16.5]} 52. Qd3 {[%clk 0:00:04]} 52...
Nh5 {[%clk 0:00:13.4]} 53. Kg1 {[%clk 0:00:02.5]} 53... Ng3 {[%clk 0:00:13]} 54.
Qc4 {[%clk 0:00:01.5]} 54... Qe3+ {[%clk 0:00:12.1]} 55. Kh2 {[%clk 0:00:02.1]}
55... Qe5 {[%clk 0:00:10.7]} 56. Qxh4+ {[%clk 0:00:01.9]} 56... Nh5+ {[%clk
0:00:09.5]} 57. Kh1 {[%clk 0:00:02.5]} 57... Qg3 {[%clk 0:00:08.8]} 58. Qb4
{[%clk 0:00:01.6]} 58... Rf7 {[%clk 0:00:06.9]} 59. Qd2 {[%clk 0:00:01.5]} 59...
Rf1+ {[%clk 0:00:06.6]} 60. Rxf1 {[%clk 0:00:02]} 60... exf1=Q# {[%clk
0:00:06.9]} 0-1

[Event "Early-Titled-Tuesday-Blitz-September-12-2023"]
[Site "Chess.com"]
[Date "2023.09.12"]
[Round "4"]
[White "brunoo2003"]
[Black "The_Machine04"]
[Result "1/2-1/2"]
[WhiteElo "2479"]
[BlackElo "2657"]
[TimeControl "180+1"]
[EndTime "8:39:26 PDT"]
[Termination "Game drawn by stalemate"]

1. d4 {[%clk 0:02:47.1]} 1... d6 {[%clk 0:02:56.1]} 2. e4 {[%clk 0:02:46.3]}
2... Nf6 {[%clk 0:02:56]} 3. Nc3 {[%clk 0:02:46.8]} 3... e5 {[%clk 0:02:55.9]}
4. Nge2 {[%clk 0:02:45.4]} 4... Nbd7 {[%clk 0:02:55.7]} 5. g3 {[%clk 0:02:44.8]}
5... c6 {[%clk 0:02:55.9]} 6. a4 {[%clk 0:02:43.6]} 6... Be7 {[%clk 0:02:56.2]}
7. Bg2 {[%clk 0:02:43.9]} 7... Qc7 {[%clk 0:02:54.8]} 8. O-O {[%clk 0:02:44.1]}
8... Nf8 {[%clk 0:02:54.6]} 9. h3 {[%clk 0:02:43.4]} 9... h6 {[%clk 0:02:54.8]}
10. f4 {[%clk 0:02:41.7]} 10... Ne6 {[%clk 0:02:53.1]} 11. Be3 {[%clk
0:02:39.2]} 11... O-O {[%clk 0:02:50.5]} 12. Qd2 {[%clk 0:02:36.4]} 12... a5
{[%clk 0:02:41.7]} 13. Rad1 {[%clk 0:02:26.2]} 13... Rd8 {[%clk 0:02:30.4]} 14.
Qe1 {[%clk 0:02:21.7]} 14... b6 {[%clk 0:02:28.8]} 15. Qf2 {[%clk 0:02:03.7]}
15... Rb8 {[%clk 0:02:09.5]} 16. Rd2 {[%clk 0:01:40.1]} 16... Ba6 {[%clk
0:02:07.8]} 17. Rfd1 {[%clk 0:01:39.3]} 17... Nf8 {[%clk 0:01:46.6]} 18. fxe5
{[%clk 0:01:09]} 18... dxe5 {[%clk 0:01:47.5]} 19. d5 {[%clk 0:01:08.9]} 19...
cxd5 {[%clk 0:01:42.1]} 20. exd5 {[%clk 0:01:08.8]} 20... Bd6 {[%clk 0:01:39.6]}
21. g4 {[%clk 0:01:08.7]} 21... N6d7 {[%clk 0:01:35.8]} 22. Ng3 {[%clk 0:01:08]}
22... Bc5 {[%clk 0:01:33.9]} 23. Nge4 {[%clk 0:01:00.3]} 23... Bxe3 {[%clk
0:01:33.6]} 24. Qxe3 {[%clk 0:01:01.2]} 24... Nc5 {[%clk 0:01:29.9]} 25. Nxc5
{[%clk 0:00:59.7]} 25... Qxc5 {[%clk 0:01:29.9]} 26. Qxc5 {[%clk 0:01:00]} 26...
bxc5 {[%clk 0:01:30.8]} 27. b3 {[%clk 0:01:00.3]} 27... Ng6 {[%clk 0:01:28.7]}
28. Be4 {[%clk 0:00:38.8]} 28... Nf4 {[%clk 0:01:25.4]} 29. Kh2 {[%clk
0:00:39.4]} 29... c4 {[%clk 0:01:23.6]} 30. bxc4 {[%clk 0:00:37.2]} 30... Bxc4
{[%clk 0:01:23.4]} 31. Rb1 {[%clk 0:00:30.1]} 31... Rxb1 {[%clk 0:01:22.3]} 32.
Nxb1 {[%clk 0:00:30.1]} 32... Kf8 {[%clk 0:01:19.9]} 33. Na3 {[%clk 0:00:27.9]}
33... Rc8 {[%clk 0:01:01.2]} 34. d6 {[%clk 0:00:25.6]} 34... Be6 {[%clk
0:01:01.2]} 35. c4 {[%clk 0:00:18.4]} 35... Ke8 {[%clk 0:00:59.5]} 36. Bb7
{[%clk 0:00:17.6]} 36... Rc5 {[%clk 0:00:56.7]} 37. Ba6 {[%clk 0:00:17.8]} 37...
Kd8 {[%clk 0:00:55.2]} 38. Bb5 {[%clk 0:00:17.9]} 38... e4 {[%clk 0:00:52.8]}
39. Kg3 {[%clk 0:00:14]} 39... e3 {[%clk 0:00:49.8]} 40. Rd1 {[%clk 0:00:14.3]}
40... g5 {[%clk 0:00:49.3]} 41. Kf3 {[%clk 0:00:12.5]} 41... e2 {[%clk 0:00:49]}
42. Re1 {[%clk 0:00:13.1]} 42... Re5 {[%clk 0:00:48.4]} 43. Nc2 {[%clk
0:00:10.7]} 43... Rc5 {[%clk 0:00:36.9]} 44. Nd4 {[%clk 0:00:10.8]} 44... Bxc4
{[%clk 0:00:35.3]} 45. Nc6+ {[%clk 0:00:11]} 45... Kc8 {[%clk 0:00:11.7]} 46.
d7+ {[%clk 0:00:11.3]} 46... Kxd7 {[%clk 0:00:11.5]} 47. Ne5+ {[%clk 0:00:11.9]}
47... Ke6 {[%clk 0:00:09.6]} 48. Nxc4 {[%clk 0:00:12.1]} 48... Kd5 {[%clk
0:00:09.3]} 49. Ne3+ {[%clk 0:00:12.1]} 49... Kd4 {[%clk 0:00:09.4]} 50. Nf5+
{[%clk 0:00:08.4]} 50... Kc3 {[%clk 0:00:09.1]} 51. Ng3 {[%clk 0:00:08.7]} 51...
Kd2 {[%clk 0:00:08.4]} 52. Rxe2+ {[%clk 0:00:08.3]} 52... Nxe2 {[%clk
0:00:08.5]} 53. Nxe2 {[%clk 0:00:08.2]} 53... f5 {[%clk 0:00:09.1]} 54. gxf5
{[%clk 0:00:07.2]} 54... Rxf5+ {[%clk 0:00:10]} 55. Kg4 {[%clk 0:00:07.7]} 55...
Re5 {[%clk 0:00:09.5]} 56. Kh5 {[%clk 0:00:07.3]} 56... Re3 {[%clk 0:00:08.2]}
57. Kg4 {[%clk 0:00:04.6]} 57... Rxe2 {[%clk 0:00:03.9]} 58. Bxe2 {[%clk
0:00:02.9]} 58... Kxe2 {[%clk 0:00:04.8]} 59. Kh5 {[%clk 0:00:03.5]} 59... Kf3
{[%clk 0:00:05.3]} 60. Kxh6 {[%clk 0:00:03.9]} 60... g4 {[%clk 0:00:05.4]} 61.
hxg4 {[%clk 0:00:03]} 61... Kxg4 {[%clk 0:00:06.3]} 62. Kg6 {[%clk 0:00:03]}
62... Kf4 {[%clk 0:00:07]} 63. Kh5 {[%clk 0:00:03.8]} 63... Ke4 {[%clk
0:00:07.5]} 64. Kg4 {[%clk 0:00:04.7]} 64... Kd3 {[%clk 0:00:07.9]} 65. Kf3
{[%clk 0:00:05.6]} 65... Kc3 {[%clk 0:00:08.5]} 66. Ke2 {[%clk 0:00:06.5]} 66...
Kb3 {[%clk 0:00:09.1]} 67. Kd1 {[%clk 0:00:07.3]} 67... Kxa4 {[%clk 0:00:10]}
68. Kc1 {[%clk 0:00:07.7]} 68... Ka3 {[%clk 0:00:09.9]} 69. Kb1 {[%clk
0:00:08.6]} 69... a4 {[%clk 0:00:10.3]} 70. Ka1 {[%clk 0:00:09.5]} 70... Kb3
{[%clk 0:00:11.2]} 71. Kb1 {[%clk 0:00:10.4]} 71... a3 {[%clk 0:00:12.1]} 72.
Ka1 {[%clk 0:00:11.3]} 72... a2 {[%clk 0:00:13]} 1/2-1/2

[Event "Early-Titled-Tuesday-Blitz-September-12-2023"]
[Site "Chess.com"]
[Date "2023.09.12"]
[Round "4"]
[White "Rickstereo"]
[Black "M_One1126"]
[Result "1-0"]
[WhiteElo "2497"]
[BlackElo "2563"]
[TimeControl "180+1"]
[EndTime "8:39:26 PDT"]
[Termination "Rickstereo won by checkmate"]

1. c4 {[%clk 0:03:00.9]} 1... Nf6 {[%clk 0:03:00.4]} 2. Nf3 {[%clk 0:03:00.7]}
2... c6 {[%clk 0:03:00.7]} 3. g3 {[%clk 0:03:00.2]} 3... d5 {[%clk 0:03:01.6]}
4. Bg2 {[%clk 0:03:00.4]} 4... Bg4 {[%clk 0:03:02]} 5. cxd5 {[%clk 0:03:00.5]}
5... cxd5 {[%clk 0:03:02.2]} 6. Ne5 {[%clk 0:03:00.9]} 6... Bf5 {[%clk
0:02:59.8]} 7. Qb3 {[%clk 0:03:01.1]} 7... Qc7 {[%clk 0:02:53.7]} 8. Nc3 {[%clk
0:02:55.5]} 8... e6 {[%clk 0:02:39.8]} 9. d3 {[%clk 0:02:47]} 9... Nc6 {[%clk
0:02:38.6]} 10. Nf3 {[%clk 0:02:37]} 10... Be7 {[%clk 0:02:34]} 11. O-O {[%clk
0:02:36.4]} 11... O-O {[%clk 0:02:33.8]} 12. Bf4 {[%clk 0:02:34.4]} 12... Qb6
{[%clk 0:02:33.2]} 13. Qxb6 {[%clk 0:02:31.9]} 13... axb6 {[%clk 0:02:34.1]} 14.
Rfc1 {[%clk 0:02:21.7]} 14... h6 {[%clk 0:02:33.6]} 15. Nb5 {[%clk 0:02:20.3]}
15... Rfc8 {[%clk 0:02:30.4]} 16. Be3 {[%clk 0:02:06.9]} 16... Nd7 {[%clk
0:02:26.7]} 17. Nfd4 {[%clk 0:02:05]} 17... Bg6 {[%clk 0:02:23.6]} 18. f4 {[%clk
0:02:03.6]} 18... Nf6 {[%clk 0:01:39.2]} 19. h3 {[%clk 0:01:50.2]} 19... Ne8
{[%clk 0:01:22.5]} 20. a3 {[%clk 0:01:47.2]} 20... Na5 {[%clk 0:01:19.2]} 21.
Kf2 {[%clk 0:01:28.9]} 21... Nd6 {[%clk 0:00:56.7]} 22. Nxd6 {[%clk 0:01:19.1]}
22... Bxd6 {[%clk 0:00:57.6]} 23. Nb5 {[%clk 0:01:19.5]} 23... Bc5 {[%clk
0:00:57.7]} 24. d4 {[%clk 0:00:48.6]} 24... Be7 {[%clk 0:00:57.1]} 25. Nc7
{[%clk 0:00:42.7]} 25... Rab8 {[%clk 0:00:55.2]} 26. Rc3 {[%clk 0:00:40.5]}
26... Nc4 {[%clk 0:00:37.6]} 27. b3 {[%clk 0:00:31.9]} 27... Nxa3 {[%clk
0:00:21.3]} 28. Rac1 {[%clk 0:00:31.8]} 28... Kh7 {[%clk 0:00:16.5]} 29. g4
{[%clk 0:00:28.6]} 29... Be4 {[%clk 0:00:14.7]} 30. Bxe4+ {[%clk 0:00:27.3]}
30... dxe4 {[%clk 0:00:15.6]} 31. d5 {[%clk 0:00:25.3]} 31... Bb4 {[%clk
0:00:15.1]} 32. d6 {[%clk 0:00:18.5]} 32... Bxc3 {[%clk 0:00:14.5]} 33. Rxc3
{[%clk 0:00:19.4]} 33... Rd8 {[%clk 0:00:15.1]} 34. b4 {[%clk 0:00:18.7]} 34...
Nb1 {[%clk 0:00:13.3]} 35. Rc1 {[%clk 0:00:19.2]} 35... Rxd6 {[%clk 0:00:13.7]}
36. Nb5 {[%clk 0:00:19.6]} 36... Rc6 {[%clk 0:00:12.3]} 37. Rxb1 {[%clk
0:00:19.9]} 37... Ra8 {[%clk 0:00:12.7]} 38. Rb2 {[%clk 0:00:20.1]} 38... Ra1
{[%clk 0:00:12.7]} 39. Nd4 {[%clk 0:00:20.5]} 39... Rc4 {[%clk 0:00:13.1]} 40.
Nc2 {[%clk 0:00:20.1]} 40... b5 {[%clk 0:00:12.8]} 41. Nxa1 {[%clk 0:00:20.2]}
41... f5 {[%clk 0:00:13.2]} 42. Nc2 {[%clk 0:00:20.9]} 42... g6 {[%clk 0:00:13]}
43. gxf5 {[%clk 0:00:21.8]} 43... gxf5 {[%clk 0:00:13.1]} 44. Nd4 {[%clk
0:00:22.5]} 44... e5 {[%clk 0:00:11.4]} 45. Nxb5 {[%clk 0:00:22.6]} 45... Kg6
{[%clk 0:00:11]} 46. fxe5 {[%clk 0:00:22.9]} 46... Kh5 {[%clk 0:00:10.5]} 47.
Nd6 {[%clk 0:00:23.8]} 47... Rc7 {[%clk 0:00:10.3]} 48. Kg3 {[%clk 0:00:22.9]}
48... Rg7+ {[%clk 0:00:08.1]} 49. Kf4 {[%clk 0:00:22.9]} 49... Rg2 {[%clk
0:00:07.5]} 50. Nxf5 {[%clk 0:00:23.1]} 50... Rh2 {[%clk 0:00:07.7]} 51. Ng3+
{[%clk 0:00:23.3]} 51... Kh4 {[%clk 0:00:07.7]} 52. Nf5+ {[%clk 0:00:23.3]}
52... Kxh3 {[%clk 0:00:08.2]} 53. Kxe4 {[%clk 0:00:23.7]} 53... Rh1 {[%clk
0:00:07.9]} 54. Bf4 {[%clk 0:00:24.1]} 54... Ra1 {[%clk 0:00:07.3]} 55. e3
{[%clk 0:00:24.5]} 55... Rh1 {[%clk 0:00:07.4]} 56. Rf2 {[%clk 0:00:24.6]} 56...
Kg4 {[%clk 0:00:07.8]} 57. Rg2+ {[%clk 0:00:24.2]} 57... Kh5 {[%clk 0:00:06.6]}
58. Ng7+ {[%clk 0:00:24]} 58... Kh4 {[%clk 0:00:06.8]} 59. Bxh6 {[%clk
0:00:23.4]} 59... Rb1 {[%clk 0:00:06.3]} 60. Bf4 {[%clk 0:00:23.4]} 60... Rxb4+
{[%clk 0:00:07.2]} 61. Kf5 {[%clk 0:00:24]} 61... Kh3 {[%clk 0:00:07.7]} 62.
Rh2# {[%clk 0:00:24.4]} 1-0

[Event "Early-Titled-Tuesday-Blitz-September-12-2023"]
[Site "Chess.com"]
[Date "2023.09.12"]
[Round "4"]
[White "Arimin1329"]
[Black "Tea99"]
[Result "1-0"]
[WhiteElo "2245"]
[BlackElo "2391"]
[TimeControl "180+1"]
[EndTime "8:39:28 PDT"]
[Termination "Arimin1329 won by resignation"]

1. d4 {[%clk 0:02:53.4]} 1... Nf6 {[%clk 0:02:58.5]} 2. b3 {[%clk 0:02:51.4]}
2... e6 {[%clk 0:02:58.1]} 3. Bb2 {[%clk 0:02:52.3]} 3... Be7 {[%clk 0:02:58]}
4. Nd2 {[%clk 0:02:52.9]} 4... O-O {[%clk 0:02:58.2]} 5. e4 {[%clk 0:02:52.9]}
5... d5 {[%clk 0:02:56]} 6. e5 {[%clk 0:02:52.8]} 6... Nfd7 {[%clk 0:02:55.9]}
7. Bd3 {[%clk 0:02:52.7]} 7... f6 {[%clk 0:02:53.3]} 8. exf6 {[%clk 0:02:49.9]}
8... Nxf6 {[%clk 0:02:54.2]} 9. Ngf3 {[%clk 0:02:50.2]} 9... Kh8 {[%clk
0:02:50.1]} 10. O-O {[%clk 0:02:50.5]} 10... Bd7 {[%clk 0:02:46.4]} 11. Re1
{[%clk 0:02:49.7]} 11... Nc6 {[%clk 0:02:41.8]} 12. Ng5 {[%clk 0:02:40]} 12...
Qc8 {[%clk 0:02:33.6]} 13. Nxh7 {[%clk 0:02:13.3]} 13... Nb4 {[%clk 0:02:01.6]}
14. Nxf8 {[%clk 0:02:05.1]} 14... Qxf8 {[%clk 0:01:52.2]} 15. Bg6 {[%clk
0:02:02.6]} 15... Nc6 {[%clk 0:01:44.4]} 16. Re3 {[%clk 0:01:52]} 16... Kg8
{[%clk 0:01:44.2]} 17. h3 {[%clk 0:01:39.5]} 17... Bd6 {[%clk 0:01:38.1]} 18.
Nf3 {[%clk 0:01:38.2]} 18... Be8 {[%clk 0:01:35.7]} 19. Bxe8 {[%clk 0:01:36.8]}
19... Rxe8 {[%clk 0:01:36.6]} 20. Ne5 {[%clk 0:01:37.1]} 20... Bxe5 {[%clk
0:01:10.2]} 21. dxe5 {[%clk 0:01:35.2]} 21... Ne4 {[%clk 0:01:10.9]} 22. Rf3
{[%clk 0:01:27.6]} 22... Qc5 {[%clk 0:01:10.5]} 23. Rc1 {[%clk 0:01:23.5]} 23...
Ng5 {[%clk 0:00:59.3]} 24. Rc3 {[%clk 0:01:16.8]} 24... Qb6 {[%clk 0:00:59.4]}
25. Qg4 {[%clk 0:01:04.7]} 25... Ne4 {[%clk 0:00:58.8]} 26. Rf3 {[%clk
0:01:02.7]} 26... Ne7 {[%clk 0:00:55.9]} 27. c4 {[%clk 0:00:56.3]} 27... Rf8
{[%clk 0:00:35.6]} 28. Rxf8+ {[%clk 0:00:52.7]} 28... Kxf8 {[%clk 0:00:36.5]}
29. Qf3+ {[%clk 0:00:51.8]} 29... Kg8 {[%clk 0:00:36.7]} 30. Ba3 {[%clk
0:00:46.8]} 30... c5 {[%clk 0:00:26.4]} 31. Qe3 {[%clk 0:00:33.5]} 31... Nf5
{[%clk 0:00:24.4]} 32. Qe2 {[%clk 0:00:27.2]} 32... Qa6 {[%clk 0:00:20.6]} 33.
Qb2 {[%clk 0:00:20.3]} 33... Nd4 {[%clk 0:00:18.1]} 34. cxd5 {[%clk 0:00:20.2]}
34... Ne2+ {[%clk 0:00:17.8]} 35. Kh2 {[%clk 0:00:19.6]} 35... Nxc1 {[%clk
0:00:18.4]} 36. Qxc1 {[%clk 0:00:19.8]} 36... exd5 {[%clk 0:00:19.3]} 37. Bxc5
{[%clk 0:00:19.6]} 37... Qc6 {[%clk 0:00:18.1]} 38. Be3 {[%clk 0:00:18.2]} 38...
Qe6 {[%clk 0:00:17.8]} 39. Qc7 {[%clk 0:00:16.4]} 39... b6 {[%clk 0:00:10.3]}
40. f3 {[%clk 0:00:14.2]} 40... Nc5 {[%clk 0:00:08.1]} 41. Bxc5 {[%clk
0:00:14.4]} 41... bxc5 {[%clk 0:00:09]} 42. Qxc5 {[%clk 0:00:12.1]} 42... Qxe5+
{[%clk 0:00:09.5]} 43. Kg1 {[%clk 0:00:11.6]} 43... Qe1+ {[%clk 0:00:09.8]} 44.
Kh2 {[%clk 0:00:12]} 44... Qe5+ {[%clk 0:00:10]} 45. Kh1 {[%clk 0:00:12.4]}
45... Qe1+ {[%clk 0:00:10.3]} 46. Qg1 {[%clk 0:00:12.8]} 46... Qe5 {[%clk
0:00:10.4]} 47. Qxa7 {[%clk 0:00:10.6]} 47... d4 {[%clk 0:00:11]} 48. Qa8+
{[%clk 0:00:08.7]} 48... Kh7 {[%clk 0:00:11.4]} 49. Kg1 {[%clk 0:00:06.6]} 49...
Qe3+ {[%clk 0:00:10.2]} 50. Kh2 {[%clk 0:00:06.2]} 50... d3 {[%clk 0:00:10.3]}
51. Qc8 {[%clk 0:00:06]} 51... Qe5+ {[%clk 0:00:08.1]} 52. Kg1 {[%clk
0:00:05.6]} 52... Qe1+ {[%clk 0:00:07.9]} 53. Kh2 {[%clk 0:00:05.4]} 53... Qe5+
{[%clk 0:00:08.8]} 54. g3 {[%clk 0:00:04.2]} 54... Qe2+ {[%clk 0:00:08.4]} 55.
Kg1 {[%clk 0:00:04.8]} 55... d2 {[%clk 0:00:09.3]} 56. Qf5+ {[%clk 0:00:04.1]}
56... Kg8 {[%clk 0:00:09.3]} 57. Qc8+ {[%clk 0:00:04]} 57... Kf7 {[%clk
0:00:10]} 58. Qf5+ {[%clk 0:00:04]} 58... Ke7 {[%clk 0:00:10]} 59. Qc5+ {[%clk
0:00:04.2]} 59... Ke6 {[%clk 0:00:09.6]} 60. Qc6+ {[%clk 0:00:04.5]} 60... Ke7
{[%clk 0:00:10.1]} 61. Qc7+ {[%clk 0:00:04.7]} 61... Kf8 {[%clk 0:00:10.3]} 62.
Qc8+ {[%clk 0:00:05.1]} 62... Kf7 {[%clk 0:00:10.4]} 63. Qc4+ {[%clk 0:00:05.5]}
63... Kg6 {[%clk 0:00:10.2]} 64. Qxe2 {[%clk 0:00:05.4]} 64... Kh6 {[%clk
0:00:09.6]} 65. Qxd2+ {[%clk 0:00:05.9]} 65... g5 {[%clk 0:00:09]} 66. Qxg5+
{[%clk 0:00:06.2]} 66... Kxg5 {[%clk 0:00:08.8]} 67. Kg2 {[%clk 0:00:07.1]}
67... Kf5 {[%clk 0:00:09.7]} 68. a4 {[%clk 0:00:07.9]} 68... Ke5 {[%clk
0:00:10.6]} 69. b4 {[%clk 0:00:08.7]} 69... Kd4 {[%clk 0:00:11.5]} 70. a5 {[%clk
0:00:09.6]} 70... Kc4 {[%clk 0:00:12.1]} 71. a6 {[%clk 0:00:10.5]} 71... Kxb4
{[%clk 0:00:13]} 72. a7 {[%clk 0:00:10.9]} 1-0